fUST/lending_fUST_20240501
["ID","MTS","AMOUNT","RATE_DAILY","PERIOD"]
[325118396,1714522154161,-213.73694974,0.00035259,4]
[325118397,1714522154179,-353.458508,0.00036776,120]
[325118398,1714522154200,-353.458508,0.00042905,120]
[325118399,1714522154223,-1688.0,0.00046,120]
[325118400,1714522159108,-1642.98320288,0.00048821,30]
[325118401,1714522162099,-263.40304343,0.00048821,30]
[325118402,1714522174115,-6564.86685369,0.00048821,30]
[325118403,1714522174144,-353.458508,0.00049035,120]
[325118404,1714522174165,-166.666666,0.00049512,2]
[325118405,1714522174184,-166.666666,0.00050861,2]
[325118406,1714522174207,-24900.0,0.00052053,2]
[325118407,1714522174227,-734.88487177,0.00052111,14]
[325118408,1714522174247,-166.666666,0.00052211,2]
[325118409,1714522174265,-166.666666,0.00053561,2]
[325118410,1714522174284,-166.666666,0.00054911,2]
[325118411,1714522174303,-353.458508,0.00055164,120]
[325118412,1714522174322,-166.666666,0.00056261,2]
[325118413,1714522174340,-150.0,0.00082067,3]
[325118414,1714522174360,-150.59,0.0011189,120]
[325118415,1714522174378,-6879.23636893,0.00111898,14]
[325118435,1714522200870,166.666666,0.00046449,2]
[325118436,1714522205823,-166.666666,0.00047715,2]
[325118437,1714522205849,-166.666666,0.00048982,2]
[325118438,1714522205877,-166.666666,0.00050248,2]
[325118439,1714522205904,-166.666666,0.00051514,2]
[325118440,1714522205931,-166.666666,0.00052781,2]
[325118441,1714522205958,-690.93823937,0.00111898,14]
[325118442,1714522205987,-466.43678541,0.00111898,14]
[325118443,1714522206013,-242.12980667,0.00111899,14]
[325118444,1714522206039,-44444.0,0.001119,120]
[325118445,1714522206065,-232.6,0.00111989,3]
[325118446,1714522206091,-193.83,0.00111989,3]
[325118447,1714522206117,-8373.19,0.00111999,60]
[325118448,1714522206146,-8373.19,0.00111999,60]
[325118449,1714522206174,-8373.19,0.00111999,60]
[325118450,1714522206201,-8373.19,0.00111999,60]
[325118451,1714522206229,-8373.19,0.00111999,60]
[325118452,1714522206254,-8373.19,0.00111999,60]
[325118453,1714522206279,-8373.19,0.00111999,60]
[325118454,1714522206305,-1478.98090346,0.00112,61]
[325118455,1714522206333,-1000000.0,0.00112,120]
[325118456,1714522206989,161.53,0.00111989,3]
[325118521,1714522237859,-1812.6578253,0.001459,120]
[325118523,1714522237868,-164.14249473,0.00146,120]
[325118525,1714522237880,-1523.85750527,0.00146,120]
[325118527,1714522237890,-317.69958518,0.00157997,30]
[325118529,1714522237899,-412.30118532,0.00157997,30]
[325118531,1714522237908,-160.5700316,0.00161864,2]
[325118533,1714522237917,-6056.82476254,0.002,120]
[325118557,1714522238146,-21548.17523746,0.002,120]
[325118559,1714522238155,-225.0,0.002,120]
[325118561,1714522238166,-150.0,0.002,120]
[325118563,1714522238175,-724.47915348,0.00218501,30]
[325118565,1714522238184,-2063.58894303,0.00218502,30]
[325118567,1714522238193,-1688.0,0.00246,120]
[325118569,1714522238202,-2000.0,0.00255,120]
[325118571,1714522238211,-153.0,0.00296949,120]
[325118573,1714522238222,-466.43678541,0.00299999,30]
[325118575,1714522238230,-40000.0,0.003,120]
[325118577,1714522238241,-153.0,0.00332131,120]
[325118579,1714522238250,-1688.0,0.00346,120]
[325118581,1714522238259,-781.20377277,0.0038,120]
[325118583,1714522238268,-2779.19807457,0.00384998,120]
[325118585,1714522238277,-156.06083935,0.00384998,30]
[325118587,1714522238286,-2589.60801009,0.00384998,30]
[325118589,1714522238295,-154.82968734,0.00384998,30]
[325118590,1714522238304,-155.01755094,0.00384998,30]
[325118592,1714522238313,-200.04743827,0.00384998,30]
[325118594,1714522238322,-409.9813796,0.00384998,30]
[325118596,1714522238331,-532.01749123,0.00384998,30]
[325118598,1714522238341,-314.9659743,0.00384998,30]
[325118600,1714522238350,-158.30423409,0.00384998,30]
[325118602,1714522238359,-314.73609379,0.00384998,30]
[325118604,1714522238368,-718.44665129,0.00384998,2]
[325118606,1714522238377,-2391.54694339,0.00384998,30]
[325118608,1714522238386,-323.91983136,0.00384998,30]
[325118610,1714522238395,-228.67045727,0.00384998,30]
[325118612,1714522238405,-233.41814442,0.00384998,30]
[325118614,1714522238414,-877.80590812,0.00384998,30]
[325118616,1714522238423,-182.24017576,0.00385,30]
[325118618,1714522238433,-154.81422293,0.00385,30]
[325118620,1714522238442,-2118.18648295,0.00385,30]
[325118622,1714522238451,-40000.0,0.004,120]
[325118624,1714522238461,-225.0,0.004,120]
[325118626,1714522238470,-150.0,0.004,120]
[325118628,1714522238479,-2633.72072045,0.00410957,30]
[325118630,1714522238488,-2047.31186267,0.00414999,30]
[325118632,1714522238499,-1688.0,0.00446,120]
[325118634,1714522238508,-40000.0,0.005,120]
[325118636,1714522238516,-156.74807864,0.00542023,120]
[325118638,1714522238525,-700427.57186417,0.0054298,120]
[325118640,1714522238537,-891407.96906123,0.0054298,120]
[325118642,1714522238548,-585.99897291,0.0054298,120]
[325118761,1714522239894,-3259.90694557,0.0054298,120]
[325119141,1714522243099,-1063.9953093,0.0054298,120]
[325119327,1714522245860,-2189.08636994,0.0054298,120]
[325119439,1714522834764,166.666666,0.00029004,2]
[325119440,1714522834966,33.333334,0.00029795,2]
[325119441,1714522893975,236.153935,0.00018472,2]
[325119442,1714522931135,154.73694719,0.00018472,2]
[325119443,1714522951134,154.937895,0.00018472,2]
[325119444,1714523001945,206.77268513,0.00020913,2]
[325119446,1714523144207,-154.73694719,0.00025,2]
[325119447,1714523144231,-19.06738837,0.00029521,4]
[325119448,1714523231135,-623.95687442,0.00029521,4]
[325119449,1714523231159,-12416.78616718,0.00029554,2]
[325119450,1714523234099,-2477.24218586,0.00029554,2]
[325119456,1714523359137,-10005.97164696,0.00029554,2]
[325119457,1714523359158,-182.122785,0.00029621,2]
[325119458,1714523359179,-133.333332,0.00029795,2]
[325119459,1714523359199,-166.666666,0.00030585,2]
[325119460,1714523359220,-166.666666,0.00031376,2]
[325119461,1714523359243,-166.666666,0.00032167,2]
[325119462,1714523359263,-166.666666,0.00032957,2]
[325119463,1714523359283,-466.43678541,0.00034,4]
[325119464,1714523359301,-252.73056689,0.00041,2]
[325119465,1714523359320,-476.28166,0.00056034,2]
[325119466,1714523359339,-10000.0,0.000588,60]
[325119467,1714523359357,-715.76618411,0.00069999,7]
[325119468,1714523359375,-40000.0,0.0007,120]
[325119469,1714523359393,-50000.0,0.0008,120]
[325119470,1714523359411,-154.82968734,0.00111899,120]
[325119471,1714523359429,-476.28166,0.00115754,2]
[325119472,1714523359448,-476.28166,0.00175474,2]
[325119473,1714523359470,-225.0,0.002,120]
[325119474,1714523359491,-190.52620762,0.002,30]
[325119475,1714523359511,-476.28166,0.00235194,2]
[325119476,1714523359532,-2000.0,0.00273,120]
[325119477,1714523359551,-2639.31,0.00273963,3]
[325119478,1714523359569,-2199.43,0.00273963,3]
[325119479,1714523359588,-2392.989957,0.00273973,120]
[325119480,1714523359607,-2392.989957,0.00273973,120]
[325119481,1714523359629,-2392.989957,0.00273973,120]
[325119482,1714523359649,-2392.989957,0.00273973,120]
[325119483,1714523359668,-2392.989957,0.00273973,120]
[325119484,1714523359687,-2392.989957,0.00273973,120]
[325119485,1714523359706,-2392.989957,0.00273973,120]
[325119486,1714523359725,-2392.989957,0.00273973,120]
[325119487,1714523359745,-2392.989957,0.00273973,120]
[325119488,1714523359768,-2392.989957,0.00273973,120]
[325119489,1714523359787,-2392.989957,0.00273973,120]
[325119490,1714523359808,-2392.989957,0.00273973,120]
[325119491,1714523359827,-2392.989957,0.00273973,120]
[325119492,1714523359846,-2392.989957,0.00273973,120]
[325119493,1714523359865,-2392.989957,0.00273973,120]
[325119494,1714523359885,-2392.989957,0.00273973,120]
[325119495,1714523359904,-2392.989957,0.00273973,120]
[325119496,1714523359924,-2392.989957,0.00273973,120]
[325119497,1714523359943,-2392.989957,0.00273973,120]
[325119498,1714523359962,-1403.825265,0.00273973,120]
[325119499,1714523359981,-1403.825265,0.00273973,120]
[325119500,1714523360001,-1403.825265,0.00273973,120]
[325119501,1714523360023,-1403.825265,0.00273973,120]
[325119502,1714523360044,-1403.825265,0.00273973,120]
[325119503,1714523360065,-1403.825265,0.00273973,120]
[325119504,1714523360086,-1403.825265,0.00273973,120]
[325119505,1714523360106,-1403.825265,0.00273973,120]
[325119506,1714523360125,-1403.825265,0.00273973,120]
[325119507,1714523360145,-1403.825265,0.00273973,120]
[325119508,1714523360166,-1403.825265,0.00273973,120]
[325119509,1714523360189,-1403.825265,0.00273973,120]
[325119510,1714523360210,-1403.825265,0.00273973,120]
[325119511,1714523360230,-1403.825265,0.00273973,120]
[325119512,1714523360250,-1403.825265,0.00273973,120]
[325119513,1714523360273,-1403.825265,0.00273973,120]
[325119514,1714523360296,-1403.825265,0.00273973,120]
[325119515,1714523360316,-1403.825265,0.00273973,120]
[325119516,1714523360336,-1403.825265,0.00273973,120]
[325119517,1714523360358,-2000.0,0.00283,120]
[325119518,1714523360379,-225.0,0.0029,120]
[325119519,1714523360399,-2000.0,0.00293,120]
[325119520,1714523360419,-476.28166,0.00294914,2]
[325119521,1714523360441,-2000.0,0.00303,120]
[325119522,1714523360467,-1621.03819169,0.0031,120]
[325119523,1714523373092,-250.00182177,0.0031,120]
[325119524,1714523373123,-527.74998654,0.0031,120]
[325119525,1714523373143,-2000.0,0.00313,120]
[325119526,1714523373164,-2000.0,0.00323,120]
[325119527,1714523373274,-2000.0,0.00323,120]
[325119528,1714523373295,-2000.0,0.00323,120]
[325119529,1714523373316,-500.0,0.00328767,120]
[325119530,1714523373336,-2000.0,0.00333,120]
[325119531,1714523373356,-2119.0,0.00343,120]
[325119532,1714523373376,-2000.0,0.00343,120]
[325119533,1714523373396,-2000.0,0.00353,120]
[325119534,1714523373415,-2000.0,0.00353,120]
[325119535,1714523373434,-2000.0,0.00363,120]
[325119536,1714523373456,-2000.0,0.00373,120]
[325119537,1714523373476,-2042.0,0.00383,120]
[325119538,1714523373495,-150.0,0.004,120]
[325119539,1714523373517,-225.0,0.004,120]
[325119540,1714523373536,-434.74594479,0.004,120]
[325119572,1714523432013,-225.0,0.002,120]
[325119574,1714523432022,-166.666666,0.00208319,2]
[325119576,1714523432031,-166.666666,0.00213998,2]
[325119578,1714523432041,-166.666666,0.00219678,2]
[325119580,1714523432050,-166.666666,0.00225357,2]
[325119582,1714523432060,-125.21698663,0.00231037,2]
[325119704,1714523438354,-41.44967937,0.00231037,2]
[325119706,1714523438364,-166.666666,0.00236716,2]
[325119708,1714523438373,-200.0,0.003992,120]
[325119710,1714523438383,-565.25395521,0.004,120]
[325119712,1714523438392,-500.0,0.004,120]
[325119714,1714523438401,-150.0,0.004,120]
[325119716,1714523438410,-225.0,0.004,120]
[325119718,1714523438418,-500.0,0.00405,120]
[325119720,1714523438427,-500.0,0.0041,120]
[325119722,1714523438436,-521.99333466,0.00412,120]
[325119723,1714523438446,-500.0,0.0045,120]
[325119725,1714523438455,-1832.85,0.0053999,120]
[325119727,1714523438464,-466.43678541,0.00539999,30]
[325119729,1714523438477,-154.73694719,0.00539999,30]
[325119731,1714523438486,-168.0,0.0054,120]
[325119733,1714523438495,-211408.40135333,0.0054,120]
[325119735,1714523438504,-156.74807864,0.00542023,120]
[325119737,1714523438515,-30000.0,0.0054288,120]
[325119739,1714523438524,-30000.0,0.0054288,120]
[325119741,1714523438533,-2408187.36811934,0.0054288,120]
[325120362,1714523446030,-1018.5600002,0.0054288,120]
[325120363,1714523446171,-3855.1,0.0054288,120]
[325120364,1714523446187,-85648.02908569,0.0054288,120]
[325120449,1714523493895,154.79876161,0.00019,2]
[325120450,1714523824559,154.73694719,9.999e-05,2]
[325120451,1714523875158,399.07103,0.00018472,2]
[325120453,1714523896720,154.73694719,9.999e-05,2]
[325120454,1714523902977,166.666666,0.00021918,2]
[325120455,1714523903159,166.666666,0.00022431,2]
[325120456,1714523903352,166.666666,0.00022944,2]
[325120457,1714523903567,166.666666,0.00023456,2]
[325120458,1714523903811,166.666666,0.00023969,2]
[325120459,1714523914624,156.8587421,0.00020913,2]
[325120460,1714524033774,-166.666666,0.00024482,2]
[325120461,1714524047722,821.41353093,0.00020913,2]
[325120462,1714524069771,547.60902062,0.00020913,2]
[325120463,1714524096002,456.34085052,0.00020913,2]
[325120464,1714524118072,456.34085052,0.00020913,2]
[325120465,1714524140076,237.75358312,0.00020913,2]
[325120466,1714524166086,237.75358312,0.00020913,2]
[325120467,1714524190077,237.75358312,0.00020913,2]
[325120468,1714524206097,237.75358312,0.00020913,2]
[325120469,1714524220092,237.75358312,0.00020913,2]
[325120470,1714524238089,237.75358312,0.00020913,2]
[325120471,1714524260104,237.75358312,0.00020913,2]
[325120472,1714524278100,237.75358312,0.00020913,2]
[325120473,1714524294174,379.67558764,0.00020913,2]
[325120474,1714524312257,272.48145046,0.00020913,2]
[325120475,1714524335022,199.535515,0.00018472,2]
[325120476,1714524341316,-199.535515,0.00027708,2]
[325120477,1714524341335,-439.55347831,0.00028351,2]
[325120478,1714524347113,-188.25096713,0.00028351,2]
[325120479,1714524347132,-289.2435984,0.00034,4]
[325120480,1714524358470,2589.60801009,0.00020913,2]
[325120482,1714524448140,-241.71320654,0.00026,2]
[325120483,1714524454150,-529.36908946,0.00026,2]
[325120484,1714524559174,-4228.917704,0.00026,2]
[325120485,1714524559193,-250.0,0.00031008,2]
[325120486,1714524559212,-177.19318701,0.00034,4]
[325120487,1714524559231,-535.69130215,0.00034,10]
[325120488,1714524559253,-176.729255,0.00036069,120]
[325120489,1714524559273,-166.666666,0.0003714,2]
[325120490,1714524559293,-24900.0,0.00037292,2]
[325120491,1714524559314,-689.4532291,0.00038105,2]
[325120492,1714524559338,-166.666666,0.00038153,2]
[325120493,1714524559362,-166.666666,0.00039165,2]
[325120494,1714524559386,-166.666666,0.00040178,2]
[325120495,1714524559406,-252.73056689,0.00041,2]
[325120496,1714524559429,-166.666666,0.00041191,2]
[325120497,1714524559452,-166.666666,0.00042203,2]
[325120498,1714524559475,-151.0,0.0005,120]
[325120499,1714524559498,-1000.0,0.000524,68]
[325120500,1714524559522,-176.729255,0.00054104,120]
[325120501,1714524559545,-166.666666,0.00068098,120]
[325120502,1714524559569,-153.0,0.0006982,60]
[325120503,1714524559592,-306.0,0.0006982,60]
[325120504,1714524559614,-394.1503899,0.00069957,60]
[325120505,1714524559639,-153.0,0.00069957,60]
[325120506,1714524559664,-206.3192644,0.00069957,60]
[325120507,1714524559686,-1624.56010567,0.00135657,14]
[325120508,1714524559708,-899.61667044,0.00135658,14]
[325120509,1714524559730,-151.0,0.00144438,120]
[325120510,1714524559754,-153.0,0.00186221,120]
[325120511,1714524559775,-153.0,0.00186221,120]
[325120512,1714524559796,-159.73149034,0.0019,120]
[325120513,1714524559822,-225.0,0.002,120]
[325120514,1714524559845,-154.73694719,0.002,30]
[325120515,1714524559871,-153.0,0.00207962,120]
[325120516,1714524559897,-153.0,0.00207962,120]
[325120517,1714524559921,-153.0,0.00229702,120]
[325120518,1714524559943,-153.0,0.00229702,120]
[325120519,1714524559966,-151.0,0.00238877,120]
[325120520,1714524559986,-153.0,0.00251443,120]
[325120521,1714524560010,-153.0,0.00251443,120]
[325120522,1714524560032,-153.0,0.00273184,120]
[325120523,1714524560058,-8039.87303008,0.00273873,2]
[325120524,1714524560080,-151.0,0.00273973,120]
[325120525,1714524560102,-151.0,0.00273973,120]
[325120526,1714524560122,-151.0,0.00273973,120]
[325120527,1714524560143,-151.0,0.00273973,120]
[325120528,1714524560165,-151.0,0.00273973,120]
[325120529,1714524560187,-151.0,0.00273973,120]
[325120530,1714524560208,-151.0,0.00273973,120]
[325120531,1714524560230,-151.0,0.00273973,120]
[325120532,1714524560251,-151.0,0.00273973,120]
[325120533,1714524560272,-151.0,0.00273973,120]
[325120534,1714524560293,-151.0,0.00273973,120]
[325120535,1714524560315,-151.0,0.00273973,120]
[325120536,1714524560337,-151.0,0.00273973,120]
[325120537,1714524560359,-151.0,0.00273973,120]
[325120538,1714524560381,-278.989954,0.00273973,120]
[325120539,1714524560517,-465.45633,0.00283444,2]
[325120540,1714524560543,-151.0,0.00333315,120]
[325120541,1714524560564,-2221.68,0.0034999,120]
[325120542,1714524560585,-6879.23636893,0.00349998,30]
[325120543,1714524560606,-115121.0082879,0.0035,50]
[325120584,1714524633535,-151.0,0.0005,120]
[325120587,1714524633545,-151.0,0.00171425,120]
[325120589,1714524633556,-156.86099235,0.0021,120]
[325120590,1714524633566,-156.86099235,0.0022,120]
[325120592,1714524633583,-154.27667306,0.00228571,120]
[325120594,1714524633592,-156.86099235,0.0023,120]
[325120596,1714524633603,-156.86099235,0.0024,120]
[325120598,1714524633613,-156.86099235,0.0025,120]
[325120600,1714524633623,-154.27667306,0.00257143,120]
[325120602,1714524633633,-156.86099235,0.0026,120]
[325120604,1714524633644,-2633.72072045,0.00262499,30]
[325120606,1714524633654,-156.86099235,0.0027,120]
[325120608,1714524633664,-151.0,0.00273973,120]
[325120610,1714524633675,-151.0,0.00273973,120]
[325120612,1714524633684,-151.0,0.00273973,120]
[325120614,1714524633693,-151.0,0.00273973,120]
[325120616,1714524633703,-151.0,0.00273973,120]
[325120618,1714524633712,-151.0,0.00273973,120]
[325120620,1714524633721,-151.0,0.00273973,120]
[325120622,1714524633730,-151.0,0.00273973,120]
[325120624,1714524633739,-195.825262,0.00273973,120]
[325120626,1714524633748,-156.86099235,0.0028,120]
[325120628,1714524633758,-465.45633,0.00283444,2]
[325120630,1714524633766,-154.27667306,0.00285714,120]
[325120631,1714524633775,-156.86099235,0.0029,120]
[325120633,1714524633785,-151.0,0.00292849,120]
[325120635,1714524633794,-156.86099235,0.003,120]
[325120637,1714524633803,-156.86099235,0.0031,120]
[325120639,1714524633813,-154.27667306,0.00314286,120]
[325120641,1714524633827,-156.86099235,0.0032,120]
[325120643,1714524633836,-156.86099235,0.0033,120]
[325120645,1714524633845,-769.2,0.00331756,60]
[325120647,1714524633854,-156.86099235,0.0034,120]
[325120649,1714524633863,-154.27667306,0.00342857,120]
[325120651,1714524633873,-466.43678541,0.00349999,30]
[325120653,1714524633884,-29544.40836094,0.0035,50]
[325120655,1714524633896,-7517.13748686,0.0035,50]
[325120702,1714524640430,-97817.4458643,0.0035,50]
[325120703,1714524640439,-156.86099235,0.0035,120]
[325120704,1714524640449,-156.86099235,0.0036,120]
[325120705,1714524640460,-156.86099235,0.0037,120]
[325120706,1714524640468,-154.27667306,0.00371429,120]
[325120707,1714524640479,-465.45633,0.00377925,2]
[325120708,1714524640488,-156.86099235,0.0038,120]
[325120709,1714524640497,-156.86099235,0.0039,120]
[325120710,1714524640506,-154.86062544,0.00396,30]
[325120711,1714524640515,-150.0,0.004,120]
[325120712,1714524640525,-225.0,0.004,120]
[325120713,1714524640535,-998.40255591,0.004,80]
[325120714,1714524640543,-157.36,0.004,120]
[325120715,1714524640553,-154.77,0.004,120]
[325120716,1714524640562,-151.0,0.00414274,120]
[325120717,1714524640572,-769.2,0.00423015,60]
[325120718,1714524640586,-769.2,0.00436913,120]
[325120719,1714524640596,-465.45633,0.00472406,2]
[325120720,1714524640605,-15065.69896488,0.0047995,120]
[325120721,1714524640618,-30395.51879403,0.0047995,120]
[325120722,1714524642357,-301500.0,0.0047995,120]
[325120723,1714524642395,-1150.42890228,0.0047995,120]
[325120724,1714524642533,-497788.42954864,0.0047995,120]
[325120725,1714524642544,-1038210.65809213,0.0047995,120]
[325120726,1714524642729,-53.05495172,0.0047995,120]
[325120745,1714524644042,-200.0,0.002625,30]
[325120746,1714524644052,-20606.67988021,0.0047995,120]
[325120747,1714524644086,-0.00459342,0.0047995,120]
[325120776,1714524991830,415.66512961,0.00019178,2]
[325120777,1714524991857,500.0,0.00019178,2]
[325120778,1714524991885,500.0,0.00019178,2]
[325120779,1714524992004,500.0,0.00019178,2]
[325120780,1714524992032,500.0,0.00019178,2]
[325120781,1714524992060,500.0,0.00019178,2]
[325120782,1714524992087,254.35338775,0.00019178,2]
[325120785,1714525241143,250.48370975,0.00019178,2]
[325120787,1714525359132,1780.0,0.0002659,120]
[325120788,1714525403192,52590.82646023,0.00020913,2]
[325120789,1714525404218,206.77268513,0.00020913,2]
[325120790,1714525482047,5807.75773021,0.00020913,2]
[325120791,1714525485435,377.54108775,0.00021,2]
[325120792,1714525485723,365.42910842,0.00020913,2]
[325120793,1714525485911,-563.13128791,0.00020913,2]
[325120794,1714525485937,-166.666666,0.00033165,2]
[325120795,1714525485963,-166.666666,0.00034069,2]
[325120796,1714525485989,-250.0,0.00034629,2]
[325120797,1714525486015,-166.666666,0.00034974,2]
[325120798,1714525486040,-166.666666,0.00035878,2]
[325120799,1714525486066,-166.666666,0.00036782,2]
[325120800,1714525486095,-166.666666,0.00037686,2]
[325120801,1714525486123,-674.72033854,0.00049166,14]
[325120802,1714525486151,-24900.0,0.00049199,2]
[325120803,1714525486178,-500.0,0.0005,3]
[325120804,1714525495372,6287.7108132,0.00021918,2]
[325120806,1714525551178,-257.35072671,0.00034,4]
[325120808,1714525602097,409.28352353,9.999e-05,2]
[325120809,1714525628108,-602.81816018,0.00020912,2]
[325120810,1714525645392,154.73694719,9.999e-05,2]
[325120811,1714525648147,-193.58690566,0.00020912,2]
[325120812,1714525650522,164.09674352,9.998e-05,2]
[325120813,1714525658485,154.73694719,9.999e-05,2]
[325120815,1714525773107,-263.40304343,0.0002091,2]
[325120816,1714525809448,-2517.42326834,0.0002091,2]
[325120817,1714525809475,-3525.57250472,0.00020911,2]
[325120818,1714525809500,-1595.14187755,0.00020912,2]
[325120819,1714525809529,-718.44665129,0.00020912,2]
[325120820,1714525809555,-154.82968734,0.00020912,2]
[325120821,1714525809580,-314.73609379,0.00020912,2]
[325120822,1714525809606,-233.41814442,0.00020912,2]
[325120823,1714525809631,-228.67045727,0.00020912,2]
[325120824,1714525809658,-532.01749123,0.00020912,2]
[325120825,1714525809683,-200.04743827,0.00020912,2]
[325120826,1714525809710,-2589.60801009,0.00020912,2]
[325120827,1714525809736,-155.01755094,0.00020912,2]
[325120828,1714525809764,-158.30423409,0.00020912,2]
[325120829,1714525809789,-411.89359398,0.00020912,2]
[325120830,1714525809814,-309.03578575,0.00020912,2]
[325120831,1714525809839,-314.94609498,0.00020912,2]
[325120832,1714525809865,-156.34293486,0.00020912,2]
[325120833,1714525809890,-715.76618411,0.00020913,2]
[325120834,1714525809918,-250.0,0.00021586,2]
[325120835,1714525809942,-159.21978257,0.00022,2]
[325120836,1714525809968,-24900.0,0.0002231,2]
[325120837,1714525809993,-590.38029617,0.000249,2]
[325120838,1714525810020,-756.81853789,0.00025,2]
[325120839,1714525810046,-150.0,0.00030558,3]
[325120840,1714525810070,-209.0860587,0.00034,4]
[325120841,1714525810094,-182.24017576,0.00034,4]
[325120842,1714525810118,-154.81422293,0.00034,2]
[325120843,1714525810143,-154.73694719,0.00035,4]
[325120844,1714525810168,-200.0,0.00035,4]
[325120845,1714525810194,-597.94257908,0.00035,2]
[325120846,1714525810222,-176.729254,0.00035616,120]
[325120847,1714525810248,-877.80590812,0.0004,10]
[325120848,1714525810278,-176.729254,0.00041553,120]
[325120849,1714525810303,-176.729254,0.00047489,120]
[325120850,1714525810328,-151.0,0.0005,120]
[325120851,1714525810353,-176.729254,0.00053425,120]
[325120852,1714525810378,-1642.9832,0.00054967,30]
[325121425,1714525839087,-2789.51424651,0.00020913,2]
[325121428,1714525839097,-265.65383425,0.00022,2]
[325121430,1714525839107,-756.81853789,0.00025,2]
[325121432,1714525839117,-466.43678541,0.00034,4]
[325121434,1714525839127,-341.72231989,0.00035,2]
[325121436,1714525839136,-196.60722059,0.00035,4]
[325121438,1714525839145,-804.43364382,0.00058607,7]
[325121448,1714525839239,-1295.44842742,0.00058607,7]
[325121451,1714525839250,-258.89243828,0.00058607,7]
[325121528,1714525841166,-252.92464018,0.00058607,7]
[325121531,1714525841187,-299.99689001,0.00058607,7]
[325121534,1714525841209,-6607.30002287,0.00058607,7]
[325121535,1714525841220,-915.66512961,0.00058607,7]
[325121594,1714525844031,-5169.78554724,0.00058607,7]
[325121596,1714525844041,-500.0,0.00068,120]
[325121598,1714525844050,-150.0,0.00082326,3]
[325121600,1714525844059,-150.0,0.00134093,3]
[325121602,1714525844069,-150.0,0.0018586,3]
[325121604,1714525844078,-283.0,0.00190835,120]
[325121606,1714525844087,-156.79615499,0.00193,120]
[325121608,1714525844096,-425.00000007,0.002,120]
[325121610,1714525844105,-190.52620762,0.002,30]
[325121612,1714525844115,-784.28001136,0.0021,120]
[325121614,1714525844124,-205.07480497,0.0021,120]
[325121616,1714525844133,-151.0,0.0022,120]
[325121618,1714525844142,-784.28001136,0.0022,120]
[325121620,1714525844151,-205.07480497,0.0022,120]
[325121622,1714525844161,-784.28001136,0.0023,120]
[325121624,1714525844170,-205.07480497,0.0023,120]
[325121626,1714525844180,-784.28001136,0.0024,120]
[325121628,1714525844190,-205.07480497,0.0024,120]
[325121630,1714525844201,-784.28001136,0.0025,120]
[325121632,1714525844211,-205.07480497,0.0025,120]
[325121634,1714525844221,-784.28001136,0.0026,120]
[325121636,1714525844230,-205.07480497,0.0026,120]
[325121638,1714525844240,-283.0,0.00260596,120]
[325121640,1714525844250,-784.28001136,0.0027,120]
[325121642,1714525844259,-205.07480497,0.0027,120]
[325121644,1714525844268,-283.0,0.00272729,120]
[325121646,1714525844281,-283.0,0.00272729,120]
[325121648,1714525844289,-1263.442738,0.00273973,120]
[325121650,1714525844298,-1263.442738,0.00273973,120]
[325121652,1714525844308,-1263.442738,0.00273973,120]
[325121654,1714525844317,-1263.442738,0.00273973,120]
[325121656,1714525844331,-1263.442738,0.00273973,120]
[325121658,1714525844350,-1263.442738,0.00273973,120]
[325121660,1714525844361,-1263.442738,0.00273973,120]
[325121662,1714525844371,-709.57105468,0.00273973,120]
[325121829,1714525846504,-553.87168332,0.00273973,120]
[325121830,1714525846513,-1263.442738,0.00273973,120]